fUSD/lending_fUSD_20250109
["ID","MTS","AMOUNT","RATE_DAILY","PERIOD"]
[348354379,1736462002151,-745.61,0.00011211,2]
[348354380,1736462002175,-633.33,0.00011211,2]
[348354381,1736462002198,-1101.89,0.00011211,2]
[348354382,1736462002221,-939.27,0.00011211,2]
[348354383,1736462002244,-1000.67,0.00011211,2]
[348354384,1736462002268,-1745.75,0.00011211,2]
[348354385,1736462002291,-500.0,0.00011211,2]
[348354386,1736462002315,-1024.79,0.00011211,2]
[348354387,1736462002339,-1174.07507,0.00011211,2]
[348354388,1736462002363,-1079.96,0.00011211,2]
[348354389,1736462002388,-677.89,0.00011211,2]
[348354390,1736462002414,-1186.32,0.00011211,2]
[348354391,1736462002438,-544.13,0.00011211,2]
[348354392,1736462002463,-928.6,0.00011211,2]
[348354393,1736462002487,-500.0,0.00011211,2]
[348354394,1736462002514,-954.79,0.00011211,2]
[348354395,1736462002542,-701.56,0.00011211,2]
[348354396,1736462002566,-500.0,0.00011211,2]
[348354397,1736462002592,-567.77,0.00011211,2]
[348354398,1736462002616,-1038.34,0.00011211,2]
[348354399,1736462002641,-3383.76,0.00011211,2]
[348354400,1736462002667,-500.0,0.00011211,2]
[348354401,1736462002690,-615.87,0.00011211,2]
[348354402,1736462002714,-500.0,0.00011211,2]
[348354403,1736462002737,-530.66,0.00011211,2]
[348354404,1736462002760,-762.96,0.00011211,2]
[348354405,1736462002786,-500.0,0.00011211,2]
[348354406,1736462002809,-4089.79,0.00011211,2]
[348354407,1736462002834,-500.0,0.00011211,2]
[348354408,1736462002857,-500.0,0.00011211,2]
[348354409,1736462002881,-500.0,0.00011211,2]
[348354410,1736462002903,-500.0,0.00011211,2]
[348354411,1736462002926,-509.46,0.00011211,2]
[348354412,1736462002954,-2157.67,0.00011211,2]
[348354413,1736462002979,-161.23831129,0.00011211,2]
[348354414,1736462003002,-755.75,0.00011211,2]
[348354415,1736462003027,-500.0,0.00011211,2]
[348354416,1736462003050,-613.34,0.00011211,2]
[348354417,1736462003072,-500.0,0.00011211,2]
[348354418,1736462003095,-500.0,0.00011211,2]
[348354419,1736462003118,-2959.41,0.00011211,2]
[348354420,1736462003141,-500.0,0.00011211,2]
[348354421,1736462003165,-500.0,0.00011211,2]
[348354422,1736462003190,-816.92,0.00011211,2]
[348354423,1736462003214,-1317.124561,0.00011211,2]
[348354424,1736462003237,-500.0,0.00011211,2]
[348354425,1736462003261,-869.42,0.00011211,2]
[348354426,1736462003285,-983.14,0.00011212,2]
[348354427,1736462003321,-500.0,0.00011212,2]
[348354428,1736462003357,-650.36,0.00011212,2]
[348354429,1736462003395,-861.7,0.00011212,2]
[348354430,1736462003431,-500.0,0.00011212,2]
[348354431,1736462003467,-502.53,0.00011212,2]
[348354432,1736462003502,-658.83,0.00011212,2]
[348354433,1736462003536,-500.0,0.00011212,2]
[348354434,1736462003571,-869.99,0.00011212,2]
[348354435,1736462003606,-608.01,0.00011212,2]
[348354436,1736462003641,-500.0,0.00011212,2]
[348354437,1736462003676,-555.57,0.00011212,2]
[348354438,1736462003710,-551.61,0.00011212,2]
[348354439,1736462003746,-583.03,0.00011212,2]
[348354440,1736462003780,-500.0,0.00011212,2]
[348354441,1736462003820,-500.0,0.00011212,2]
[348354442,1736462003855,-690.73,0.00011212,2]
[348354443,1736462003891,-500.0,0.00011212,2]
[348354444,1736462003925,-500.0,0.00011212,2]
[348354445,1736462003965,-749.69,0.00011212,2]
[348354446,1736462004002,-982.25,0.00011212,2]
[348354447,1736462004038,-1032.02,0.00011212,2]
[348354448,1736462004074,-500.0,0.00011212,2]
[348354449,1736462004111,-500.0,0.00011212,2]
[348354450,1736462004366,-500.0,0.00011212,2]
[348354451,1736462004403,-4699.67,0.00011212,2]
[348354452,1736462004439,-500.0,0.00011212,2]
[348354453,1736462004475,-490.93319322,0.00011212,2]
[348354454,1736462004510,-500.0,0.00011212,2]
[348354455,1736462004544,-500.0,0.00011212,2]
[348354456,1736462004578,-2002.59,0.00011212,2]
[348354457,1736462004616,-882.64,0.00011212,2]
[348354458,1736462004653,-900.57,0.00011212,2]
[348354459,1736462004692,-1165.13,0.00011212,2]
[348354460,1736462004730,-1516.99,0.00011212,2]
[348354461,1736462004766,-600.3,0.00011212,2]
[348354462,1736462004802,-511.09,0.00011212,2]
[348354463,1736462004839,-1538.48,0.00011212,2]
[348354464,1736462004874,-698.29,0.00011212,2]
[348354465,1736462004910,-1067.82,0.00011212,2]
[348354466,1736462004947,-500.0,0.00011212,2]
[348354467,1736462004983,-541.72,0.00011212,2]
[348354468,1736462005018,-3216.35,0.00011212,2]
[348354469,1736462005054,-668.04,0.00011212,2]
[348354470,1736462005088,-889.72,0.00011212,2]
[348354471,1736462005124,-695.66,0.00011212,2]
[348354472,1736462005160,-987.45,0.00011212,2]
[348354473,1736462005195,-2007.88,0.00011212,2]
[348354474,1736462005229,-645.68,0.00011212,2]
[348354475,1736462005265,-553.45,0.00011212,2]
[348354476,1736462005299,-500.0,0.00011212,2]
[348354477,1736462005334,-710.39,0.00011212,2]
[348354478,1736462005370,-500.0,0.00011212,2]
[348354479,1736462005406,-894.82,0.00011212,2]
[348354480,1736462005464,-650.22,0.00011212,2]
[348354481,1736462005502,-646.54,0.00011212,2]
[348354482,1736462005540,-881.54,0.00011212,2]
[348354483,1736462005578,-1535.25,0.00011212,2]
[348354484,1736462005618,-623.07,0.00011212,2]
[348354485,1736462005656,-500.0,0.00011212,2]
[348354486,1736462005694,-506.03,0.00011212,2]
[348354487,1736462005734,-4519.26,0.00011212,2]
[348354488,1736462005773,-1437.27,0.00011212,2]
[348354489,1736462005817,-500.0,0.00011213,2]
[348354490,1736462005858,-500.0,0.00011213,2]
[348354491,1736462005897,-500.0,0.00011213,2]
[348354492,1736462005940,-288.44708308,0.00011213,2]
[348354493,1736462005982,-500.0,0.00011213,2]
[348354494,1736462006022,-531.93,0.00011213,2]
[348354495,1736462006062,-500.0,0.00011213,2]
[348354496,1736462006101,-500.0,0.00011213,2]
[348354497,1736462006140,-500.0,0.00011213,2]
[348354498,1736462006178,-500.0,0.00011213,2]
[348354499,1736462006217,-275.56521085,0.00011213,2]
[348354500,1736462006257,-367.47530692,0.00011213,2]
[348354501,1736462006297,-500.0,0.00011213,2]
[348354502,1736462006342,-500.0,0.00011213,2]
[348354503,1736462006388,-1265.93,0.00011213,2]
[348354504,1736462006430,-656.86,0.00011213,2]
[348354505,1736462006470,-1105.45,0.00011213,2]
[348354506,1736462006510,-500.0,0.00011213,2]
[348354507,1736462006550,-500.0,0.00011213,2]
[348354508,1736462006590,-602.7,0.00011213,2]
[348354509,1736462006629,-500.0,0.00011213,2]
[348354510,1736462006670,-796.92,0.00011213,2]
[348354511,1736462006709,-500.0,0.00011213,2]
[348354512,1736462006750,-500.0,0.00011213,2]
[348354513,1736462006791,-1958.38,0.00011214,2]
[348354514,1736462006833,-429.63187655,0.00011214,2]
[348354515,1736462006874,-500.0,0.00011214,2]
[348354516,1736462006915,-500.0,0.00011214,2]
[348354517,1736462006955,-592.57,0.00011214,2]
[348354518,1736462006995,-500.0,0.00011214,2]
[348354519,1736462007037,-2146.58,0.00011214,2]
[348354520,1736462007077,-500.0,0.00011214,2]
[348354521,1736462007118,-500.0,0.00011214,2]
[348354522,1736462007158,-500.0,0.00011214,2]
[348354523,1736462007196,-500.0,0.00011214,2]
[348354524,1736462007236,-2902.72,0.00011214,2]
[348354525,1736462007276,-511.12,0.00011214,2]
[348354526,1736462007318,-500.0,0.00011214,2]
[348354527,1736462007368,-500.0,0.00011214,2]
[348354528,1736462007409,-500.0,0.00011214,2]
[348354529,1736462007450,-500.0,0.00011214,2]
[348354530,1736462007492,-500.0,0.00011214,2]
[348354531,1736462007534,-9157.5,0.00011214,2]
[348354532,1736462007573,-500.0,0.00011214,2]
[348354533,1736462007615,-500.0,0.00011214,2]
[348354534,1736462007654,-500.0,0.00011214,2]
[348354535,1736462007690,-500.0,0.00011214,2]
[348354536,1736462007727,-500.0,0.00011214,2]
[348354537,1736462007763,-500.0,0.00011214,2]
[348354538,1736462007801,-500.0,0.00011214,2]
[348354539,1736462007838,-500.0,0.00011214,2]
[348354540,1736462007875,-500.0,0.00011214,2]
[348354541,1736462007911,-500.0,0.00011214,2]
[348354542,1736462007950,-1381.96,0.00011214,2]
[348354543,1736462007987,-500.0,0.00011214,2]
[348354544,1736462008025,-500.0,0.00011214,2]
[348354545,1736462008062,-500.0,0.00011214,2]
[348354546,1736462008102,-500.0,0.00011214,2]
[348354547,1736462008145,-590.84,0.00011214,2]
[348354548,1736462008188,-500.0,0.00011214,2]
[348354549,1736462008233,-1081.83,0.00011214,2]
[348354550,1736462008270,-500.0,0.00011214,2]
[348354551,1736462008305,-500.0,0.00011214,2]
[348354552,1736462008344,-500.0,0.00011214,2]
[348354553,1736462008379,-500.0,0.00011214,2]
[348354554,1736462008413,-500.0,0.00011214,2]
[348354555,1736462008447,-592.16,0.00011214,2]
[348354556,1736462008481,-1165.6,0.00011214,2]
[348354557,1736462008514,-500.0,0.00011214,2]
[348354558,1736462008547,-500.0,0.00011214,2]
[348354559,1736462008588,-500.0,0.00011214,2]
[348354560,1736462008623,-3349.38,0.00011214,2]
[348354561,1736462008656,-500.0,0.00011214,2]
[348354562,1736462008691,-554.22,0.00011214,2]
[348354563,1736462008726,-500.0,0.00011214,2]
[348354564,1736462008762,-599.03,0.00011214,2]
[348354565,1736462008799,-500.0,0.00011214,2]
[348354566,1736462008837,-500.0,0.00011214,2]
[348354567,1736462008871,-500.0,0.00011214,2]
[348354568,1736462008905,-500.0,0.00011214,2]
[348354569,1736462008943,-500.0,0.00011214,2]
[348354570,1736462008979,-500.0,0.00011214,2]
[348354571,1736462009013,-500.0,0.00011214,2]
[348354572,1736462009051,-1067.43,0.00011214,2]
[348354573,1736462009089,-500.0,0.00011214,2]
[348354574,1736462009123,-500.0,0.00011214,2]
[348354575,1736462009159,-500.0,0.00011214,2]
[348354576,1736462009195,-500.0,0.00011214,2]
[348354577,1736462009229,-500.0,0.00011214,2]
[348354578,1736462009266,-500.0,0.00011214,2]
[348354579,1736462009302,-500.0,0.00011214,2]
[348354580,1736462009340,-500.0,0.00011214,2]
[348354581,1736462009377,-500.0,0.00011214,2]
[348354582,1736462009414,-500.0,0.00011214,2]
[348354583,1736462009451,-500.0,0.00011214,2]
[348354584,1736462009496,-500.0,0.00011214,2]
[348354585,1736462009537,-1488.11,0.00011214,2]
[348354586,1736462009575,-500.0,0.00011214,2]
[348354587,1736462009613,-500.0,0.00011214,2]
[348354588,1736462009650,-500.0,0.00011214,2]
[348354589,1736462009686,-500.0,0.00011214,2]
[348354590,1736462009724,-802.2,0.00011214,2]
[348354591,1736462009760,-590.94,0.00011214,2]
[348354592,1736462009797,-500.0,0.00011214,2]
[348354593,1736462009832,-500.0,0.00011214,2]
[348354594,1736462009869,-500.0,0.00011214,2]
[348354595,1736462009907,-500.0,0.00011214,2]
[348354596,1736462009946,-500.0,0.00011214,2]
[348354597,1736462009984,-500.0,0.00011214,2]
[348354598,1736462010021,-180.9898509,0.00011214,2]
[348354599,1736462010058,-500.0,0.00011214,2]
[348354600,1736462010395,-1981.78,0.00011214,2]
[348354601,1736462010434,-301.89223643,0.00011214,2]
[348354602,1736462010468,-500.0,0.00011214,2]
[348354603,1736462010504,-622.76,0.00011214,2]
[348354604,1736462010539,-500.0,0.00011214,2]
[348354605,1736462010574,-500.0,0.00011214,2]
[348354606,1736462010609,-500.0,0.00011214,2]
[348354607,1736462010646,-500.0,0.00011214,2]
[348354608,1736462010680,-520.63433204,0.00011214,2]
[348354609,1736462010714,-500.0,0.00011214,2]
[348354610,1736462010749,-666.39,0.00011214,2]
[348354611,1736462010784,-500.0,0.00011214,2]
[348354612,1736462010820,-1000.0,0.00011214,2]
[348354613,1736462010856,-500.0,0.00011214,2]
[348354614,1736462010890,-525.64,0.00011214,2]
[348354615,1736462010926,-1328.87,0.00011214,2]
[348354616,1736462010962,-577.58,0.00011214,2]
[348354617,1736462010996,-500.0,0.00011214,2]
[348354618,1736462011029,-546.57,0.00011214,2]
[348354619,1736462011063,-552.13482743,0.00011214,2]
[348354620,1736462011096,-500.0,0.00011214,2]
[348354621,1736462011130,-500.0,0.00011214,2]
[348354622,1736462011164,-500.0,0.00011214,2]
[348354623,1736462011197,-500.0,0.00011214,2]
[348354624,1736462011231,-500.0,0.00011214,2]
[348354625,1736462011266,-500.0,0.00011214,2]
[348354626,1736462011302,-1743.24,0.00011214,2]
[348354627,1736462011337,-158.05280471,0.0001122,2]
[348354628,1736462011373,-500.0,0.00011232,2]
[348354629,1736462011407,-6517.52221623,0.00011233,2]
[348354630,1736462011442,-150.0,0.00011251,2]
[348354631,1736462011476,-150.0,0.00011263,2]
[348354632,1736462011510,-20312.34,0.00011281,2]
[348354633,1736462011544,-13901.62,0.00011281,2]
[348354634,1736462011580,-300.81967421,0.00011328,2]
[348354635,1736462011617,-1174.41,0.00011369,2]
[348354636,1736462011651,-1870.03,0.00011369,2]
[348354637,1736462011686,-1868.89,0.00011369,2]
[348354638,1736462011721,-2027.75,0.00011369,2]
[348354639,1736462011759,-1892.75,0.00011369,2]
[348354640,1736462011798,-1894.66,0.00011369,2]
[348354641,1736462011837,-2749.56,0.00011369,2]
[348354642,1736462011872,-1749.35,0.00011369,2]
[348354643,1736462011909,-2228.34,0.00011369,2]
[348354644,1736462011950,-500.0,0.00011369,2]
[348354645,1736462011994,-1234.22,0.00011369,2]
[348354646,1736462012039,-2613.79,0.00011369,2]
[348354647,1736462012076,-1038.44,0.00011369,2]
[348354648,1736462012111,-1226.29,0.00011369,2]
[348354649,1736462012144,-1217.49,0.00011369,2]
[348354650,1736462012178,-777.96,0.00011369,2]
[348354651,1736462012212,-1651.17,0.00011369,2]
[348354652,1736462012245,-551.92934455,0.00011369,2]
[348354653,1736462012279,-1520.48,0.00011369,2]
[348354654,1736462012319,-150.0,0.00011403,2]
[348354655,1736462012352,-1500.0,0.00011444,2]
[348354656,1736462012385,-6517.52221623,0.00011446,2]
[348354657,1736462012418,-150.0,0.00011456,2]
[348354658,1736462012454,-300.81967421,0.00011459,2]
[348354659,1736462012492,-1258.06,0.00011484,2]
[348354660,1736462012526,-902.25,0.00011484,2]
[348354661,1736462012561,-1930.58,0.00011484,2]
[348354662,1736462012597,-518.47,0.00011484,2]
[348354663,1736462012632,-1986.22,0.00011484,2]
[348354664,1736462012666,-1249.39,0.00011484,2]
[348354665,1736462012701,-1009.79,0.00011484,2]
[348354666,1736462012736,-500.0,0.00011484,2]
[348354667,1736462012771,-532.35185923,0.00011484,2]
[348354668,1736462012805,-579.77,0.00011484,2]
[348354669,1736462012841,-500.63,0.00011484,2]
[348354670,1736462012875,-500.0,0.00011484,2]
[348354671,1736462012910,-2383.05,0.00011484,2]
[348354672,1736462012947,-500.0,0.00011484,2]
[348354673,1736462012983,-1079.38,0.00011484,2]
[348354674,1736462013018,-1242.05,0.00011484,2]
[348354675,1736462013053,-380.87,0.00011484,2]
[348354676,1736462013089,-688.81,0.00011484,2]
[348354677,1736462013124,-500.0,0.00011484,2]
[348354678,1736462013161,-1754.21,0.00011484,2]
[348354679,1736462013196,-500.0,0.00011484,2]
[348354680,1736462013232,-500.0,0.00011484,2]
[348354681,1736462013267,-966.84,0.00011484,2]
[348354682,1736462013305,-500.0,0.00011484,2]
[348354683,1736462013345,-1173.64,0.00011484,2]
[348354684,1736462013384,-2288.45,0.00011484,2]
[348354685,1736462013420,-614.89,0.00011484,2]
[348354686,1736462013458,-500.0,0.00011484,2]
[348354687,1736462013493,-500.0,0.00011484,2]
[348354688,1736462013528,-500.0,0.00011484,2]
[348354689,1736462013563,-500.0,0.00011484,2]
[348354690,1736462013601,-851.88,0.00011484,2]
[348354691,1736462013640,-4237.82,0.00011484,2]
[348354692,1736462013678,-519.44,0.00011484,2]
[348354693,1736462013717,-1275.49,0.00011484,2]
[348354694,1736462013753,-3142.11,0.00011484,2]
[348354695,1736462013791,-500.0,0.00011484,2]
[348354696,1736462013831,-804.39,0.00011484,2]
[348354697,1736462013870,-500.0,0.00011484,2]
[348354698,1736462013907,-500.0,0.00011484,2]
[348354699,1736462013957,-2603.65,0.00011484,2]
[348354700,1736462014000,-2072.25,0.00011484,2]
[348354701,1736462014037,-500.0,0.00011484,2]
[348354702,1736462014073,-500.0,0.00011484,2]
[348354703,1736462014111,-2985.94,0.00011484,2]
[348354704,1736462014147,-506.63,0.00011484,2]
[348354705,1736462014184,-1017.3,0.00011484,2]
[348354706,1736462014219,-399.06854385,0.00011484,3]
[348354707,1736462014257,-500.0,0.00011484,2]
[348354708,1736462014293,-1521.56,0.00011484,2]
[348354709,1736462014329,-565.57,0.00011485,2]
[348354710,1736462014363,-516.15,0.00011485,2]
[348354711,1736462014399,-1267.12,0.00011485,2]
[348354712,1736462014434,-500.0,0.00011485,2]
[348354713,1736462014469,-500.0,0.00011485,2]
[348354714,1736462014503,-500.0,0.00011485,2]
[348354715,1736462014536,-507.23,0.00011485,2]
[348354716,1736462014571,-500.0,0.00011485,2]
[348354717,1736462014608,-664.96,0.00011485,2]
[348354718,1736462014640,-500.0,0.00011485,2]
[348354719,1736462014674,-1030.96,0.00011485,2]
[348354720,1736462014706,-500.0,0.00011485,2]
[348354721,1736462014741,-500.0,0.00011485,2]
[348354722,1736462014775,-1062.09,0.00011485,2]
[348354723,1736462014809,-838.28,0.00011485,2]
[348354724,1736462014842,-559.47,0.00011485,2]
[348354725,1736462014877,-782.41,0.00011485,2]
[348354726,1736462014909,-1044.54,0.00011485,2]
[348354727,1736462014943,-500.0,0.00011485,2]
[348354728,1736462014977,-500.0,0.00011485,2]
[348354729,1736462015014,-500.0,0.00011485,2]
[348354730,1736462015049,-1054.83,0.00011485,2]
[348354731,1736462015084,-770.42,0.00011485,2]
[348354732,1736462015116,-708.26,0.00011485,2]
[348354733,1736462015149,-1050.52,0.00011485,2]
[348354734,1736462015182,-500.0,0.00011485,2]
[348354735,1736462015214,-972.0,0.00011485,2]
[348354736,1736462015249,-535.34,0.00011485,2]
[348354737,1736462015285,-602.56,0.00011485,2]
[348354738,1736462015324,-910.14,0.00011485,2]
[348354739,1736462015362,-815.05,0.00011485,2]
[348354740,1736462015401,-611.14,0.00011485,2]
[348354741,1736462015439,-500.0,0.00011485,2]
[348354742,1736462015477,-1811.07,0.00011485,2]
[348354743,1736462015515,-500.0,0.00011485,2]
[348354744,1736462015552,-860.82,0.00011485,2]
[348354745,1736462015590,-601.74,0.00011485,2]
[348354746,1736462015629,-745.61,0.00011485,2]
[348354747,1736462015665,-633.33,0.00011485,2]
[348354748,1736462015702,-1101.89,0.00011485,2]
[348354749,1736462015943,-939.27,0.00011485,2]
[348354750,1736462015982,-1000.67,0.00011485,2]
[348354751,1736462016022,-1745.75,0.00011485,2]
[348354752,1736462016065,-500.0,0.00011485,2]
[348354753,1736462016102,-1024.79,0.00011485,2]
[348354754,1736462016138,-1174.07507,0.00011485,2]
[348354755,1736462016176,-1079.96,0.00011485,2]
[348354756,1736462016212,-677.89,0.00011485,2]
[348354757,1736462016251,-1186.32,0.00011485,2]
[348354758,1736462016288,-544.13,0.00011485,2]
[348354759,1736462016325,-928.6,0.00011485,2]
[348354760,1736462016365,-500.0,0.00011485,2]
[348354761,1736462016403,-954.79,0.00011485,2]
[348354762,1736462016443,-701.56,0.00011485,2]
[348354763,1736462016482,-500.0,0.00011485,2]
[348354764,1736462016518,-567.77,0.00011485,2]
[348354765,1736462016554,-1038.34,0.00011485,2]
[348354766,1736462016592,-3383.76,0.00011485,2]
[348354767,1736462016628,-500.0,0.00011485,2]
[348354768,1736462016664,-615.87,0.00011485,2]
[348354769,1736462016699,-500.0,0.00011485,2]
[348354770,1736462016734,-530.66,0.00011485,2]
[348354771,1736462016772,-762.96,0.00011485,2]
[348354772,1736462016813,-500.0,0.00011485,2]
[348354773,1736462016848,-4089.79,0.00011485,2]
[348354774,1736462016884,-500.0,0.00011485,2]
[348354775,1736462016920,-500.0,0.00011485,2]
[348354776,1736462016958,-500.0,0.00011485,2]
[348354777,1736462016995,-500.0,0.00011485,2]
[348354778,1736462017030,-509.46,0.00011485,2]
[348354779,1736462017064,-2157.67,0.00011485,2]
[348354780,1736462017098,-150.129789,0.00011485,2]
[348354781,1736462017133,-755.75,0.00011485,2]
[348354782,1736462017168,-500.0,0.00011485,2]
[348354783,1736462017203,-613.34,0.00011485,2]
[348354784,1736462017236,-500.0,0.00011485,2]
[348354785,1736462017270,-500.0,0.00011485,2]
[348354786,1736462017304,-2959.41,0.00011485,2]
[348354787,1736462017338,-500.0,0.00011485,2]
[348354788,1736462017374,-500.0,0.00011485,2]
[348354789,1736462017408,-816.92,0.00011485,2]
[348354790,1736462017444,-1317.124561,0.00011485,2]
[348354791,1736462017477,-500.0,0.00011485,2]
[348354792,1736462017514,-869.42,0.00011485,2]
[348354793,1736462017548,-983.14,0.00011486,2]
[348354794,1736462017581,-500.0,0.00011486,2]
[348354795,1736462017614,-650.36,0.00011486,2]
[348354796,1736462017646,-861.7,0.00011486,2]
[348354797,1736462017678,-500.0,0.00011486,2]
[348354798,1736462017710,-502.53,0.00011486,2]
[348354799,1736462017744,-658.83,0.00011486,2]
[348354800,1736462017777,-500.0,0.00011486,2]
[348354801,1736462017813,-869.99,0.00011486,2]
[348354802,1736462017848,-608.01,0.00011486,2]
[348354803,1736462017881,-500.0,0.00011486,2]
[348354804,1736462017915,-555.57,0.00011486,2]
[348354805,1736462017950,-551.61,0.00011486,2]
[348354806,1736462017986,-583.03,0.00011486,2]
[348354807,1736462018024,-500.0,0.00011486,2]
[348354808,1736462018058,-500.0,0.00011486,2]
[348354809,1736462018094,-690.73,0.00011486,2]
[348354810,1736462018129,-500.0,0.00011486,2]
[348354811,1736462018162,-500.0,0.00011486,2]
[348354812,1736462018195,-749.69,0.00011486,2]
[348354813,1736462018227,-982.25,0.00011486,2]
[348354814,1736462018261,-1032.02,0.00011486,2]
[348354815,1736462018294,-500.0,0.00011486,2]
[348354816,1736462018328,-637.86,0.00011486,2]
[348354817,1736462018363,-500.0,0.00011486,2]
[348354818,1736462018397,-4699.67,0.00011486,2]
[348354819,1736462018432,-500.0,0.00011486,2]
[348354820,1736462018467,-500.0,0.00011486,2]
[348354821,1736462018503,-500.0,0.00011486,2]
[348354822,1736462018538,-2002.59,0.00011486,2]
[348354823,1736462018573,-882.64,0.00011486,2]
[348354824,1736462018610,-900.57,0.00011486,2]
[348354825,1736462018646,-1165.13,0.00011486,2]
[348354826,1736462018682,-1516.99,0.00011486,2]
[348354827,1736462018717,-600.3,0.00011486,2]
[348354828,1736462018755,-511.09,0.00011486,2]
[348354829,1736462018792,-1538.48,0.00011486,2]
[348354830,1736462018830,-698.29,0.00011486,2]
[348354831,1736462018869,-1067.82,0.00011486,2]
[348354832,1736462018905,-500.0,0.00011486,2]
[348354833,1736462018943,-541.72,0.00011486,2]
[348354834,1736462018980,-3216.35,0.00011486,2]
[348354835,1736462019018,-668.04,0.00011486,2]
[348354836,1736462019055,-889.72,0.00011486,2]
[348354837,1736462019093,-695.66,0.00011486,2]
[348354838,1736462019128,-987.45,0.00011486,2]
[348354839,1736462019162,-2007.88,0.00011486,2]
[348354840,1736462019198,-645.68,0.00011486,2]
[348354841,1736462019234,-553.45,0.00011486,2]
[348354842,1736462019270,-500.0,0.00011486,2]
[348354843,1736462019304,-710.39,0.00011486,2]
[348354844,1736462019339,-500.0,0.00011486,2]
[348354845,1736462019377,-894.82,0.00011486,2]
[348354846,1736462019413,-650.22,0.00011486,2]
[348354847,1736462019449,-646.54,0.00011486,2]
[348354848,1736462019485,-881.54,0.00011486,2]
[348354849,1736462019519,-1535.25,0.00011486,2]
[348354850,1736462019553,-623.07,0.00011486,2]
[348354851,1736462019589,-500.0,0.00011486,2]
[348354852,1736462019624,-506.03,0.00011486,2]
[348354853,1736462019661,-4519.26,0.00011486,2]
[348354854,1736462019698,-1437.27,0.00011486,2]
[348354855,1736462019733,-500.0,0.00011487,2]
[348354856,1736462019771,-500.0,0.00011487,2]
[348354857,1736462019811,-500.0,0.00011487,2]
[348354858,1736462019848,-500.0,0.00011487,2]
[348354859,1736462019883,-500.0,0.00011487,2]
[348354860,1736462019919,-500.0,0.00011487,2]
[348354861,1736462019955,-500.0,0.00011487,2]
[348354862,1736462019995,-500.0,0.00011487,2]
[348354863,1736462020032,-1265.93,0.00011487,2]
[348354864,1736462020068,-656.86,0.00011487,2]
[348354865,1736462020104,-1105.45,0.00011487,2]
[348354866,1736462020139,-500.0,0.00011487,2]
[348354867,1736462020172,-500.0,0.00011487,2]
[348354868,1736462020207,-602.7,0.00011487,2]
[348354869,1736462020243,-500.0,0.00011487,2]
[348354870,1736462020277,-796.92,0.00011487,2]
[348354871,1736462020311,-500.0,0.00011487,2]
[348354872,1736462020345,-500.0,0.00011487,2]
[348354873,1736462020379,-1958.38,0.00011488,2]
[348354874,1736462020413,-432.03574883,0.00011488,2]
[348354875,1736462020448,-592.57,0.00011488,2]
[348354876,1736462020482,-500.0,0.00011488,2]
[348354877,1736462020516,-2146.58,0.00011488,2]
[348354878,1736462020550,-500.0,0.00011488,2]